[Event "Titled Tuesday Blitz January 10 Late 2023"]
[White "Zierk, Steven"]
[Black "Sai Krishna G V"]
[WhiteFideId "2034255"]
[BlackFideId "5028280"]
[WhiteElo "2488"]
[BlackElo "2384"]
[Result "1-0"]
[Round "06"]
[TimeControl "180+2"]
[Date "2023.01.10"]
[WhiteClock "0:00:24"]
[BlackClock "0:00:34"]

1. e4 {[%clk 0:00:00]}  e5 {[%clk 0:00:00]} 2. Nf3 {[%clk 0:03:00]}  Nc6 {[%clk 0:02:59]} 3. Bc4 {[%clk 0:03:01]}  Nf6 {[%clk 0:03:00]} 4. d4 {[%clk 0:03:00]}  exd4 {[%clk 0:03:00]} 5. e5 {[%clk 0:02:59]}  d5 {[%clk 0:02:58]} 6. Bb5 {[%clk 0:02:59]}  Ne4 {[%clk 0:02:58]} 7. Nxd4 {[%clk 0:03:00]}  Bd7 {[%clk 0:02:59]} 8. Bxc6 {[%clk 0:03:00]}  bxc6 {[%clk 0:02:59]} 9. O-O {[%clk 0:03:00]}  Bc5 {[%clk 0:03:00]} 10. Be3 {[%clk 0:03:00]}  Bb6 {[%clk 0:03:00]} 11. f3 {[%clk 0:02:59]}  Ng5 {[%clk 0:02:59]} 12. f4 {[%clk 0:02:57]}  Ne4 {[%clk 0:02:59]} 13. Nd2 {[%clk 0:02:47]}  c5 {[%clk 0:02:59]} 14. N4f3 {[%clk 0:02:45]}  Nxd2 {[%clk 0:02:59]} 15. Qxd2 {[%clk 0:02:44]}  d4 {[%clk 0:02:53]} 16. Bf2 {[%clk 0:02:43]}  Bb5 {[%clk 0:02:48]} 17. Rfe1 {[%clk 0:02:43]}  Bc6 {[%clk 0:02:49]} 18. Qd3 {[%clk 0:02:36]}  Qd5 {[%clk 0:02:44]} 19. e6 {[%clk 0:02:26]}  O-O {[%clk 0:02:33]} 20. Re5 {[%clk 0:02:10]}  c4 {[%clk 0:01:56]} 21. Qd2 {[%clk 0:02:05]}  Qd6 {[%clk 0:01:54]} 22. Nxd4 {[%clk 0:01:34]}  fxe6 {[%clk 0:01:53]} 23. Rxe6 {[%clk 0:01:09]}  Qxf4 {[%clk 0:01:38]} 24. Qxf4 {[%clk 0:00:58]}  Rxf4 {[%clk 0:01:38]} 25. Rxc6 {[%clk 0:00:56]}  Bxd4 {[%clk 0:01:38]} 26. Bxd4 {[%clk 0:00:51]}  Rxd4 {[%clk 0:01:36]} 27. Rxc7 {[%clk 0:00:51]}  Re8 {[%clk 0:01:37]} 28. Rf1 {[%clk 0:00:49]}  h5 {[%clk 0:01:28]} 29. h3 {[%clk 0:00:47]}  Re2 {[%clk 0:01:27]} 30. Rff7 {[%clk 0:00:42]}  Rdd2 {[%clk 0:01:09]} 31. Rxg7+ {[%clk 0:00:40]}  Kf8 {[%clk 0:01:06]} 32. Rcf7+ {[%clk 0:00:39]}  Ke8 {[%clk 0:01:04]} 33. Rxa7 {[%clk 0:00:38]}  Kf8 {[%clk 0:01:04]} 34. Raf7+ {[%clk 0:00:38]}  Ke8 {[%clk 0:01:03]} 35. Rf5 {[%clk 0:00:25]}  Rxc2 {[%clk 0:01:03]} 36. Rxh5 {[%clk 0:00:21]}  Kf8 {[%clk 0:00:46]} 37. Rg4 {[%clk 0:00:21]}  Rxb2 {[%clk 0:00:46]} 38. Rc5 {[%clk 0:00:21]}  Rxa2 {[%clk 0:00:46]} 39. Rcxc4 {[%clk 0:00:21]}  Kf7 {[%clk 0:00:41]} 40. Rcf4+ {[%clk 0:00:21]}  Ke6 {[%clk 0:00:41]} 41. Re4+ {[%clk 0:00:21]}  Kf5 {[%clk 0:00:41]} 42. Rxe2 {[%clk 0:00:21]}  Rxe2 {[%clk 0:00:40]} 43. Kh2 {[%clk 0:00:21]}  Rc2 {[%clk 0:00:41]} 44. Ra4 {[%clk 0:00:21]}  Kg5 {[%clk 0:00:40]} 45. h4+ {[%clk 0:00:20]}  Kh5 {[%clk 0:00:40]} 46. Kh3 {[%clk 0:00:20]}  Rc3+ {[%clk 0:00:40]} 47. g3 {[%clk 0:00:21]}  Rb3 {[%clk 0:00:40]} 48. Ra5+ {[%clk 0:00:21]}  Kh6 {[%clk 0:00:41]} 49. h5 {[%clk 0:00:22]}  Rb1 {[%clk 0:00:41]} 50. Kh4 {[%clk 0:00:22]}  Rh1+ {[%clk 0:00:39]} 51. Kg4 {[%clk 0:00:22]}  Rb1 {[%clk 0:00:38]} 52. Ra6+ {[%clk 0:00:23]}  Kh7 {[%clk 0:00:38]} 53. Kh4 {[%clk 0:00:23]}  Rh1+ {[%clk 0:00:36]} 54. Kg5 {[%clk 0:00:24]}  Ra1 {[%clk 0:00:34]} 55. Rxa1 {[%clk 0:00:24]} 1-0


[Site "https://www.chess.com"]

[Event "Titled Tuesday Blitz January 10 Late 2023"]
[White "Averjanov, Alexey"]
[Black "Kamsky, Gata"]
[WhiteFideId "14109867"]
[BlackFideId "2000024"]
[WhiteElo "2399"]
[BlackElo "2665"]
[Result "0-1"]
[Round "06"]
[TimeControl "180+2"]
[Date "2023.01.10"]
[WhiteClock "0:00:01"]
[BlackClock "0:00:37"]

1. d4 {[%clk 0:00:00]}  f5 {[%clk 0:00:00]} 2. Nf3 {[%clk 0:03:00]}  Nf6 {[%clk 0:02:49]} 3. g3 {[%clk 0:02:58]}  g6 {[%clk 0:02:47]} 4. Bg2 {[%clk 0:02:59]}  Bg7 {[%clk 0:02:46]} 5. O-O {[%clk 0:02:58]}  O-O {[%clk 0:02:47]} 6. b3 {[%clk 0:02:59]}  d5 {[%clk 0:02:46]} 7. Bb2 {[%clk 0:02:59]}  c6 {[%clk 0:02:43]} 8. c4 {[%clk 0:02:56]}  Ne4 {[%clk 0:02:43]} 9. Nbd2 {[%clk 0:02:56]}  a5 {[%clk 0:02:43]} 10. a3 {[%clk 0:02:53]}  Be6 {[%clk 0:02:42]} 11. Qc2 {[%clk 0:02:49]}  Na6 {[%clk 0:02:35]} 12. e3 {[%clk 0:02:44]}  Bf6 {[%clk 0:02:29]} 13. Ne5 {[%clk 0:02:41]}  Qb6 {[%clk 0:02:22]} 14. c5 {[%clk 0:02:36]}  Qd8 {[%clk 0:02:19]} 15. Nd3 {[%clk 0:02:19]}  Nc7 {[%clk 0:02:15]} 16. f3 {[%clk 0:02:10]}  Ng5 {[%clk 0:02:09]} 17. f4 {[%clk 0:02:08]}  Ne4 {[%clk 0:02:05]} 18. Nf3 {[%clk 0:02:05]}  Bf7 {[%clk 0:02:04]} 19. Nfe5 {[%clk 0:01:58]}  Be8 {[%clk 0:02:00]} 20. Bf3 {[%clk 0:01:58]}  Ne6 {[%clk 0:02:00]} 21. Kg2 {[%clk 0:01:54]}  Ng7 {[%clk 0:01:52]} 22. h3 {[%clk 0:01:42]}  e6 {[%clk 0:01:50]} 23. g4 {[%clk 0:01:38]}  g5 {[%clk 0:01:45]} 24. Kh2 {[%clk 0:01:37]}  Bg6 {[%clk 0:01:43]} 25. Rg1 {[%clk 0:01:34]}  Qc7 {[%clk 0:01:39]} 26. Rg2 {[%clk 0:01:32]}  Bxe5 {[%clk 0:01:33]} 27. Nxe5 {[%clk 0:01:30]}  gxf4 {[%clk 0:01:19]} 28. exf4 {[%clk 0:01:14]}  fxg4 {[%clk 0:01:19]} 29. Rxg4 {[%clk 0:01:13]}  Bh5 {[%clk 0:01:19]} 30. Rxg7+ {[%clk 0:00:56]}  Qxg7 {[%clk 0:01:14]} 31. Rg1 {[%clk 0:00:26]}  Bg6 {[%clk 0:01:12]} 32. Nxg6 {[%clk 0:00:26]}  hxg6 {[%clk 0:01:12]} 33. Bxe4 {[%clk 0:00:25]}  dxe4 {[%clk 0:01:12]} 34. d5 {[%clk 0:00:25]}  Qh6 {[%clk 0:01:11]} 35. Qxe4 {[%clk 0:00:23]}  Qxf4+ {[%clk 0:00:59]} 36. Qxf4 {[%clk 0:00:18]}  Rxf4 {[%clk 0:00:58]} 37. Rxg6+ {[%clk 0:00:19]}  Kh7 {[%clk 0:00:59]} 38. Rg7+ {[%clk 0:00:19]}  Kh6 {[%clk 0:00:59]} 39. d6 {[%clk 0:00:12]}  Rf2+ {[%clk 0:00:59]} 40. Rg2 {[%clk 0:00:08]}  Rxg2+ {[%clk 0:00:58]} 41. Kxg2 {[%clk 0:00:08]}  Kg6 {[%clk 0:00:57]} 42. Kf3 {[%clk 0:00:09]}  Kf5 {[%clk 0:00:57]} 43. h4 {[%clk 0:00:08]}  e5 {[%clk 0:00:52]} 44. Bc1 {[%clk 0:00:06]}  b6 {[%clk 0:00:53]} 45. b4 {[%clk 0:00:06]}  axb4 {[%clk 0:00:49]} 46. axb4 {[%clk 0:00:06]}  bxc5 {[%clk 0:00:49]} 47. bxc5 {[%clk 0:00:06]}  Ra4 {[%clk 0:00:49]} 48. Bg5 {[%clk 0:00:07]}  Rd4 {[%clk 0:00:44]} 49. Be7 {[%clk 0:00:07]}  Rd3+ {[%clk 0:00:43]} 50. Ke2 {[%clk 0:00:06]}  e4 {[%clk 0:00:40]} 51. h5 {[%clk 0:00:06]}  Ke6 {[%clk 0:00:41]} 52. h6 {[%clk 0:00:06]}  Rh3 {[%clk 0:00:40]} 53. Bg5 {[%clk 0:00:05]}  Rh5 {[%clk 0:00:40]} 54. Bf4 {[%clk 0:00:06]}  Rxc5 {[%clk 0:00:40]} 55. Ke3 {[%clk 0:00:05]}  Rh5 {[%clk 0:00:39]} 56. Kxe4 {[%clk 0:00:04]}  c5 {[%clk 0:00:39]} 57. Kd3 {[%clk 0:00:05]}  c4+ {[%clk 0:00:39]} 58. Kc3 {[%clk 0:00:04]}  Rh3+ {[%clk 0:00:37]} 59. Kd4 {[%clk 0:00:03]}  Rh4 {[%clk 0:00:37]} 60. Ke3 {[%clk 0:00:01]}  c3 {[%clk 0:00:37]} 0-1


[Site "https://www.chess.com"]

[Event "Titled Tuesday Blitz January 10 Late 2023"]
[White "Svane, Frederik"]
[Black "Fiorito, Joaquin"]
[WhiteFideId "12923044"]
[BlackFideId "180173"]
[WhiteElo "2600"]
[BlackElo "2405"]
[Result "1-0"]
[Round "06"]
[TimeControl "180+2"]
[Date "2023.01.10"]
[WhiteClock "0:00:06"]
[BlackClock "0:00:47"]

1. e4 {[%clk 0:00:00]}  c6 {[%clk 0:00:00]} 2. d4 {[%clk 0:03:00]}  d5 {[%clk 0:03:00]} 3. exd5 {[%clk 0:02:58]}  cxd5 {[%clk 0:03:00]} 4. c3 {[%clk 0:02:59]}  Nf6 {[%clk 0:03:01]} 5. Nf3 {[%clk 0:03:00]}  Nc6 {[%clk 0:03:01]} 6. Ne5 {[%clk 0:03:00]}  Bd7 {[%clk 0:03:02]} 7. Bd3 {[%clk 0:02:59]}  g6 {[%clk 0:02:57]} 8. O-O {[%clk 0:02:56]}  Bg7 {[%clk 0:02:57]} 9. Nxd7 {[%clk 0:02:55]}  Qxd7 {[%clk 0:02:58]} 10. Nd2 {[%clk 0:02:56]}  O-O {[%clk 0:02:58]} 11. Nf3 {[%clk 0:02:56]}  Qc7 {[%clk 0:02:58]} 12. g3 {[%clk 0:02:57]}  e6 {[%clk 0:02:55]} 13. Bf4 {[%clk 0:02:57]}  Qb6 {[%clk 0:02:54]} 14. Qe2 {[%clk 0:02:57]}  Rfe8 {[%clk 0:02:55]} 15. Rfe1 {[%clk 0:02:57]}  Nd7 {[%clk 0:02:54]} 16. Rad1 {[%clk 0:02:57]}  a6 {[%clk 0:02:50]} 17. Bb1 {[%clk 0:02:44]}  Qd8 {[%clk 0:02:49]} 18. h4 {[%clk 0:02:22]}  h5 {[%clk 0:02:42]} 19. Bg5 {[%clk 0:02:19]}  Qc7 {[%clk 0:02:38]} 20. Bf4 {[%clk 0:01:51]}  Qd8 {[%clk 0:02:35]} 21. Ng5 {[%clk 0:01:50]}  b5 {[%clk 0:02:35]} 22. Qd3 {[%clk 0:01:45]}  Qf6 {[%clk 0:02:30]} 23. Re3 {[%clk 0:01:32]}  Bh6 {[%clk 0:02:19]} 24. Nxe6 {[%clk 0:01:26]}  Rxe6 {[%clk 0:01:42]} 25. Bxh6 {[%clk 0:01:08]}  Rae8 {[%clk 0:01:35]} 26. Rde1 {[%clk 0:01:00]}  Nb6 {[%clk 0:01:35]} 27. Bg5 {[%clk 0:01:00]}  Rxe3 {[%clk 0:01:34]} 28. Rxe3 {[%clk 0:00:58]}  Rxe3 {[%clk 0:01:31]} 29. Qxe3 {[%clk 0:00:54]}  Qd6 {[%clk 0:01:31]} 30. Qe8+ {[%clk 0:00:50]}  Kg7 {[%clk 0:01:25]} 31. Bh6+ {[%clk 0:00:48]}  Kh7 {[%clk 0:01:24]} 32. Bf4 {[%clk 0:00:21]}  Qe6 {[%clk 0:01:24]} 33. Qxe6 {[%clk 0:00:21]}  fxe6 {[%clk 0:01:22]} 34. b3 {[%clk 0:00:15]}  b4 {[%clk 0:01:23]} 35. Bd2 {[%clk 0:00:14]}  bxc3 {[%clk 0:01:20]} 36. Bxc3 {[%clk 0:00:15]}  Nc8 {[%clk 0:01:18]} 37. Bd3 {[%clk 0:00:16]}  a5 {[%clk 0:01:18]} 38. Bb5 {[%clk 0:00:16]}  N8e7 {[%clk 0:01:15]} 39. Kg2 {[%clk 0:00:16]}  Kg7 {[%clk 0:01:13]} 40. Kf3 {[%clk 0:00:14]}  Kf6 {[%clk 0:01:14]} 41. Ke3 {[%clk 0:00:14]}  Kf5 {[%clk 0:01:15]} 42. Kf3 {[%clk 0:00:15]}  e5 {[%clk 0:01:14]} 43. dxe5 {[%clk 0:00:10]}  d4 {[%clk 0:01:09]} 44. Bd2 {[%clk 0:00:09]}  Nxe5+ {[%clk 0:01:04]} 45. Ke2 {[%clk 0:00:07]}  Ke4 {[%clk 0:01:04]} 46. f3+ {[%clk 0:00:07]}  Kd5 {[%clk 0:01:02]} 47. Bxa5 {[%clk 0:00:08]}  Nf5 {[%clk 0:00:59]} 48. Be1 {[%clk 0:00:08]}  Kc5 {[%clk 0:00:59]} 49. Bd3 {[%clk 0:00:08]}  Ne7 {[%clk 0:00:57]} 50. a3 {[%clk 0:00:08]}  Kd5 {[%clk 0:00:55]} 51. Be4+ {[%clk 0:00:07]}  Kc5 {[%clk 0:00:47]} 52. Bb4+ {[%clk 0:00:06]}  Kb6 {[%clk 0:00:47]} 53. Bxe7 {[%clk 0:00:06]} 1-0


[Site "https://www.chess.com"]

[Event "Titled Tuesday Blitz January 10 Late 2023"]
[White "Kaplan, Avi Harrison"]
[Black "Indjic, Aleksandar"]
[WhiteFideId "30934559"]
[BlackFideId "911925"]
[WhiteElo "2146"]
[BlackElo "2618"]
[Result "0-1"]
[Round "06"]
[TimeControl "180+2"]
[Date "2023.01.10"]
[WhiteClock "0:00:03"]
[BlackClock "0:00:06"]

1. b4 {[%clk 0:00:00]}  c6 {[%clk 0:00:00]} 2. e3 {[%clk 0:03:00]}  Qb6 {[%clk 0:02:50]} 3. a3 {[%clk 0:02:59]}  a5 {[%clk 0:02:47]} 4. bxa5 {[%clk 0:02:23]}  Qxa5 {[%clk 0:02:44]} 5. Nf3 {[%clk 0:02:22]}  Nf6 {[%clk 0:02:45]} 6. Be2 {[%clk 0:02:23]}  e5 {[%clk 0:02:44]} 7. O-O {[%clk 0:02:23]}  d6 {[%clk 0:02:42]} 8. d3 {[%clk 0:02:13]}  Be7 {[%clk 0:02:39]} 9. Nbd2 {[%clk 0:02:12]}  O-O {[%clk 0:02:37]} 10. Bb2 {[%clk 0:02:11]}  h6 {[%clk 0:02:36]} 11. c4 {[%clk 0:02:08]}  Bf5 {[%clk 0:02:35]} 12. Nb3 {[%clk 0:02:04]}  Qc7 {[%clk 0:02:28]} 13. c5 {[%clk 0:02:03]}  Nbd7 {[%clk 0:02:27]} 14. cxd6 {[%clk 0:02:02]}  Bxd6 {[%clk 0:02:25]} 15. e4 {[%clk 0:02:02]}  Be6 {[%clk 0:02:26]} 16. Qc2 {[%clk 0:02:01]}  Rfe8 {[%clk 0:02:24]} 17. Rfd1 {[%clk 0:01:57]}  Qb6 {[%clk 0:02:23]} 18. Nbd2 {[%clk 0:01:53]}  Qa6 {[%clk 0:02:22]} 19. Nf1 {[%clk 0:01:39]}  Qa4 {[%clk 0:02:19]} 20. Qc1 {[%clk 0:01:33]}  Nc5 {[%clk 0:02:17]} 21. Rb1 {[%clk 0:01:21]}  Nb3 {[%clk 0:02:10]} 22. Qc2 {[%clk 0:01:08]}  Nd7 {[%clk 0:02:09]} 23. Ne3 {[%clk 0:01:08]}  Nd4 {[%clk 0:01:47]} 24. Nxd4 {[%clk 0:00:55]}  exd4 {[%clk 0:01:41]} 25. Qxa4 {[%clk 0:00:41]}  Rxa4 {[%clk 0:01:40]} 26. Nc2 {[%clk 0:00:41]}  c5 {[%clk 0:01:40]} 27. g3 {[%clk 0:00:41]}  f5 {[%clk 0:01:39]} 28. Bf3 {[%clk 0:00:40]}  f4 {[%clk 0:01:35]} 29. Kg2 {[%clk 0:00:34]}  b6 {[%clk 0:01:24]} 30. Re1 {[%clk 0:00:30]}  Be5 {[%clk 0:01:23]} 31. Bd1 {[%clk 0:00:26]}  Ra6 {[%clk 0:01:21]} 32. Na1 {[%clk 0:00:24]}  Rf8 {[%clk 0:01:15]} 33. Bb3 {[%clk 0:00:22]}  Bxb3 {[%clk 0:01:14]} 34. Nxb3 {[%clk 0:00:20]}  f3+ {[%clk 0:01:13]} 35. Kg1 {[%clk 0:00:21]}  g5 {[%clk 0:01:09]} 36. Nd2 {[%clk 0:00:20]}  g4 {[%clk 0:01:07]} 37. Nc4 {[%clk 0:00:20]}  b5 {[%clk 0:01:00]} 38. Nd2 {[%clk 0:00:20]}  h5 {[%clk 0:01:00]} 39. Rec1 {[%clk 0:00:14]}  Rb8 {[%clk 0:00:56]} 40. Nb3 {[%clk 0:00:14]}  Bd6 {[%clk 0:00:54]} 41. Rc2 {[%clk 0:00:13]}  Kf7 {[%clk 0:00:52]} 42. Rd1 {[%clk 0:00:13]}  Ke7 {[%clk 0:00:51]} 43. Kf1 {[%clk 0:00:10]}  Ke6 {[%clk 0:00:50]} 44. Ke1 {[%clk 0:00:10]}  Ra4 {[%clk 0:00:49]} 45. Kd2 {[%clk 0:00:07]}  Rba8 {[%clk 0:00:49]} 46. Rdc1 {[%clk 0:00:07]}  Rxa3 {[%clk 0:00:41]} 47. Bxa3 {[%clk 0:00:07]}  Rxa3 {[%clk 0:00:39]} 48. Rb2 {[%clk 0:00:07]}  h4 {[%clk 0:00:39]} 49. Ra1 {[%clk 0:00:06]}  Rxa1 {[%clk 0:00:22]} 50. Nxa1 {[%clk 0:00:05]}  hxg3 {[%clk 0:00:17]} 51. hxg3 {[%clk 0:00:06]}  b4 {[%clk 0:00:17]} 52. Nb3 {[%clk 0:00:06]}  Ne5 {[%clk 0:00:17]} 53. Na5 {[%clk 0:00:05]}  Bc7 {[%clk 0:00:11]} 54. Nc4 {[%clk 0:00:05]}  Nxc4+ {[%clk 0:00:08]} 55. dxc4 {[%clk 0:00:05]}  Be5 {[%clk 0:00:08]} 56. Kd3 {[%clk 0:00:05]}  Bd6 {[%clk 0:00:07]} 57. Rb1 {[%clk 0:00:05]}  Kd7 {[%clk 0:00:08]} 58. Rh1 {[%clk 0:00:05]}  b3 {[%clk 0:00:08]} 59. Rb1 {[%clk 0:00:05]}  Bc7 {[%clk 0:00:08]} 60. Rxb3 {[%clk 0:00:05]}  Ba5 {[%clk 0:00:07]} 61. Rb1 {[%clk 0:00:05]}  Ke6 {[%clk 0:00:07]} 62. Rb5 {[%clk 0:00:04]}  Be1 {[%clk 0:00:06]} 63. Rb2 {[%clk 0:00:04]}  Ke5 {[%clk 0:00:06]} 64. Ra2 {[%clk 0:00:03]}  Kd6 {[%clk 0:00:06]} 0-1


[Site "https://www.chess.com"]

[Event "Titled Tuesday Blitz January 10 Late 2023"]
[White "Taghizadeh, Rayan"]
[Black "Duda, Jan-Krzysztof"]
[WhiteFideId "2054019"]
[BlackFideId "1170546"]
[WhiteElo "2273"]
[BlackElo "2724"]
[Result "0-1"]
[Round "06"]
[TimeControl "180+2"]
[Date "2023.01.10"]
[WhiteClock "0:00:07"]
[BlackClock "0:01:20"]

1. b3 {[%clk 0:00:00]}  e5 {[%clk 0:00:00]} 2. Bb2 {[%clk 0:03:00]}  f6 {[%clk 0:02:58]} 3. e3 {[%clk 0:03:01]}  d5 {[%clk 0:02:58]} 4. d4 {[%clk 0:03:01]}  e4 {[%clk 0:02:58]} 5. c4 {[%clk 0:02:55]}  c6 {[%clk 0:02:58]} 6. f3 {[%clk 0:02:55]}  f5 {[%clk 0:02:57]} 7. f4 {[%clk 0:02:48]}  Nf6 {[%clk 0:02:53]} 8. Qd2 {[%clk 0:02:47]}  Be6 {[%clk 0:02:52]} 9. Ba3 {[%clk 0:02:47]}  Nbd7 {[%clk 0:02:42]} 10. Bxf8 {[%clk 0:02:46]}  Nxf8 {[%clk 0:02:42]} 11. Nc3 {[%clk 0:02:45]}  h6 {[%clk 0:02:43]} 12. cxd5 {[%clk 0:02:43]}  cxd5 {[%clk 0:02:42]} 13. Nge2 {[%clk 0:02:36]}  g5 {[%clk 0:02:42]} 14. g3 {[%clk 0:02:31]}  Ng6 {[%clk 0:02:34]} 15. Bh3 {[%clk 0:02:29]}  O-O {[%clk 0:02:35]} 16. O-O {[%clk 0:02:25]}  Qd7 {[%clk 0:02:34]} 17. Rac1 {[%clk 0:02:25]}  Kf7 {[%clk 0:02:31]} 18. Na4 {[%clk 0:02:20]}  b6 {[%clk 0:02:21]} 19. Rc3 {[%clk 0:02:08]}  Rae8 {[%clk 0:02:21]} 20. Rfc1 {[%clk 0:02:05]}  Re7 {[%clk 0:02:10]} 21. Qc2 {[%clk 0:01:43]}  Ne8 {[%clk 0:02:10]} 22. Rc6 {[%clk 0:01:43]}  Rg8 {[%clk 0:02:10]} 23. Kf2 {[%clk 0:01:30]}  Kf8 {[%clk 0:02:06]} 24. b4 {[%clk 0:01:25]}  Rf7 {[%clk 0:02:00]} 25. Qb3 {[%clk 0:01:21]}  Ne7 {[%clk 0:01:58]} 26. R6c2 {[%clk 0:00:45]}  h5 {[%clk 0:01:57]} 27. fxg5 {[%clk 0:00:45]}  f4 {[%clk 0:01:40]} 28. Bxe6 {[%clk 0:00:43]}  fxg3+ {[%clk 0:01:40]} 29. Ke1 {[%clk 0:00:29]}  Qxe6 {[%clk 0:01:35]} 30. hxg3 {[%clk 0:00:25]}  Rxg5 {[%clk 0:01:35]} 31. Kd2 {[%clk 0:00:22]}  Rf2 {[%clk 0:01:34]} 32. Nc3 {[%clk 0:00:22]}  Nd6 {[%clk 0:01:33]} 33. Nd1 {[%clk 0:00:17]}  Nc4+ {[%clk 0:01:32]} 34. Rxc4 {[%clk 0:00:14]}  dxc4 {[%clk 0:01:24]} 35. Rxc4 {[%clk 0:00:10]}  Rh2 {[%clk 0:01:24]} 36. Qc2 {[%clk 0:00:07]}  Rxg3 {[%clk 0:01:20]} 0-1


[Site "https://www.chess.com"]

[Event "Titled Tuesday Blitz January 10 Late 2023"]
[White "Goryachkina, Aleksandra"]
[Black "Bluebaum, Matthias"]
[WhiteFideId "4147103"]
[BlackFideId "24651516"]
[WhiteElo "2571"]
[BlackElo "2669"]
[Result "1/2-1/2"]
[Round "06"]
[TimeControl "180+2"]
[Date "2023.01.10"]
[WhiteClock "0:00:08"]
[BlackClock "0:00:05"]

1. d4 {[%clk 0:00:00]}  d5 {[%clk 0:00:00]} 2. c4 {[%clk 0:02:59]}  e6 {[%clk 0:03:00]} 3. Nf3 {[%clk 0:02:59]}  Nf6 {[%clk 0:03:00]} 4. Nc3 {[%clk 0:02:58]}  Bb4 {[%clk 0:03:01]} 5. Bg5 {[%clk 0:02:58]}  h6 {[%clk 0:03:01]} 6. Bxf6 {[%clk 0:02:58]}  Qxf6 {[%clk 0:03:01]} 7. e3 {[%clk 0:02:58]}  c5 {[%clk 0:03:02]} 8. cxd5 {[%clk 0:02:58]}  exd5 {[%clk 0:03:03]} 9. a3 {[%clk 0:02:56]}  Bxc3+ {[%clk 0:03:03]} 10. bxc3 {[%clk 0:02:52]}  O-O {[%clk 0:03:03]} 11. Bd3 {[%clk 0:02:52]}  Bg4 {[%clk 0:03:04]} 12. h3 {[%clk 0:02:49]}  Bh5 {[%clk 0:02:51]} 13. O-O {[%clk 0:02:47]}  Nc6 {[%clk 0:02:50]} 14. Be2 {[%clk 0:02:37]}  Rfd8 {[%clk 0:02:51]} 15. Rb1 {[%clk 0:02:35]}  b6 {[%clk 0:02:41]} 16. dxc5 {[%clk 0:02:31]}  bxc5 {[%clk 0:02:37]} 17. Qd2 {[%clk 0:02:23]}  Bg6 {[%clk 0:02:37]} 18. Rb5 {[%clk 0:02:07]}  Qe7 {[%clk 0:02:28]} 19. Rd1 {[%clk 0:02:05]}  a6 {[%clk 0:02:12]} 20. Rb6 {[%clk 0:01:59]}  Qc7 {[%clk 0:02:12]} 21. Rxa6 {[%clk 0:01:56]}  Rxa6 {[%clk 0:02:12]} 22. Bxa6 {[%clk 0:01:54]}  Qa5 {[%clk 0:02:03]} 23. Bb7 {[%clk 0:01:54]}  Ne7 {[%clk 0:02:03]} 24. c4 {[%clk 0:01:47]}  Qxa3 {[%clk 0:01:36]} 25. Bxd5 {[%clk 0:01:46]}  Nxd5 {[%clk 0:01:37]} 26. cxd5 {[%clk 0:01:33]}  c4 {[%clk 0:01:33]} 27. Qc1 {[%clk 0:01:33]}  Qb3 {[%clk 0:01:23]} 28. Ne5 {[%clk 0:01:17]}  c3 {[%clk 0:01:09]} 29. Nxg6 {[%clk 0:01:14]}  fxg6 {[%clk 0:00:44]} 30. Rd3 {[%clk 0:01:08]}  Rc8 {[%clk 0:00:41]} 31. d6 {[%clk 0:01:07]}  Qb2 {[%clk 0:00:40]} 32. Rd1 {[%clk 0:00:56]}  c2 {[%clk 0:00:41]} 33. Rf1 {[%clk 0:00:26]}  Qc3 {[%clk 0:00:41]} 34. e4 {[%clk 0:00:23]}  Qd4 {[%clk 0:00:40]} 35. e5 {[%clk 0:00:17]}  Rc3 {[%clk 0:00:37]} 36. Re1 {[%clk 0:00:16]}  Kh7 {[%clk 0:00:26]} 37. e6 {[%clk 0:00:14]}  Rd3 {[%clk 0:00:19]} 38. e7 {[%clk 0:00:13]}  Rd2 {[%clk 0:00:19]} 39. Qxd2 {[%clk 0:00:09]}  Qxd2 {[%clk 0:00:19]} 40. e8=Q {[%clk 0:00:05]}  c1=Q {[%clk 0:00:20]} 41. Rxc1 {[%clk 0:00:06]}  Qxc1+ {[%clk 0:00:21]} 42. Kh2 {[%clk 0:00:05]}  Qf4+ {[%clk 0:00:22]} 43. Kg1 {[%clk 0:00:05]}  Qxd6 {[%clk 0:00:23]} 44. Qe3 {[%clk 0:00:05]}  Qd1+ {[%clk 0:00:23]} 45. Kh2 {[%clk 0:00:05]}  Qd6+ {[%clk 0:00:24]} 46. Kg1 {[%clk 0:00:05]}  Qd7 {[%clk 0:00:25]} 47. h4 {[%clk 0:00:05]}  Qg4 {[%clk 0:00:25]} 48. g3 {[%clk 0:00:05]}  Qf5 {[%clk 0:00:25]} 49. Kg2 {[%clk 0:00:05]}  Qd5+ {[%clk 0:00:24]} 50. Kg1 {[%clk 0:00:06]}  g5 {[%clk 0:00:24]} 51. hxg5 {[%clk 0:00:06]}  hxg5 {[%clk 0:00:21]} 52. Qe2 {[%clk 0:00:06]}  Kg6 {[%clk 0:00:22]} 53. Qc2+ {[%clk 0:00:06]}  Kh6 {[%clk 0:00:21]} 54. Qe2 {[%clk 0:00:06]}  Qc6 {[%clk 0:00:20]} 55. Qe3 {[%clk 0:00:06]}  Kh5 {[%clk 0:00:18]} 56. Qe2+ {[%clk 0:00:07]}  Kg6 {[%clk 0:00:17]} 57. Qd3+ {[%clk 0:00:07]}  Kf6 {[%clk 0:00:17]} 58. Qd4+ {[%clk 0:00:07]}  Kf5 {[%clk 0:00:17]} 59. Qd3+ {[%clk 0:00:07]}  Kf6 {[%clk 0:00:17]} 60. Qe3 {[%clk 0:00:06]}  g6 {[%clk 0:00:15]} 61. Qd4+ {[%clk 0:00:06]}  Kf5 {[%clk 0:00:15]} 62. Qd3+ {[%clk 0:00:06]}  Kf6 {[%clk 0:00:15]} 63. Qe3 {[%clk 0:00:06]}  Qd5 {[%clk 0:00:14]} 64. f3 {[%clk 0:00:06]}  Qd1+ {[%clk 0:00:12]} 65. Kg2 {[%clk 0:00:06]}  Qc2+ {[%clk 0:00:12]} 66. Kg1 {[%clk 0:00:07]}  Qb2 {[%clk 0:00:12]} 67. g4 {[%clk 0:00:07]}  Qc2 {[%clk 0:00:09]} 68. Kf1 {[%clk 0:00:07]}  Qb2 {[%clk 0:00:08]} 69. Qe4 {[%clk 0:00:07]}  Qc1+ {[%clk 0:00:08]} 70. Ke2 {[%clk 0:00:07]}  Qb2+ {[%clk 0:00:08]} 71. Ke3 {[%clk 0:00:07]}  Qc1+ {[%clk 0:00:08]} 72. Kd3 {[%clk 0:00:08]}  Qb1+ {[%clk 0:00:08]} 73. Kd4 {[%clk 0:00:07]}  Qb4+ {[%clk 0:00:08]} 74. Kd5 {[%clk 0:00:07]}  Qb7+ {[%clk 0:00:08]} 75. Kd6 {[%clk 0:00:07]}  Qb8+ {[%clk 0:00:07]} 76. Kd7 {[%clk 0:00:07]}  Qa7+ {[%clk 0:00:07]} 77. Kd6 {[%clk 0:00:07]}  Qb8+ {[%clk 0:00:07]} 78. Kd5 {[%clk 0:00:06]}  Qd8+ {[%clk 0:00:07]} 79. Kc5 {[%clk 0:00:06]}  Qa5+ {[%clk 0:00:06]} 80. Kd6 {[%clk 0:00:06]}  Qd8+ {[%clk 0:00:06]} 81. Kc5 {[%clk 0:00:06]}  Qa5+ {[%clk 0:00:06]} 82. Kd6 {[%clk 0:00:07]}  Qb6+ {[%clk 0:00:06]} 83. Kd5 {[%clk 0:00:07]}  Qb7+ {[%clk 0:00:06]} 84. Kd6 {[%clk 0:00:08]}  Qb8+ {[%clk 0:00:05]} 1/2-1/2


[Site "https://www.chess.com"]